[Event "Titled Tuesday Blitz November 08 Late 2022"]
[White "He, Samuel"]
[Black "Tan, Ralph"]
[WhiteFideId "2087235"]
[BlackFideId "30966590"]
[WhiteElo "2603"]
[BlackElo "2059"]
[Result "0-1"]
[Round "03"]
[TimeControl "180+1"]
[Date "2022.11.09"]
[WhiteClock "0:00:05"]
[BlackClock "0:00:18"]

1. h4 {[%clk 0:03:00]}  Nf6 {[%clk 0:02:57]} 2. c4 {[%clk 0:02:55]}  g6 {[%clk 0:02:55]} 3. b3 {[%clk 0:02:50]}  Bg7 {[%clk 0:02:54]} 4. Bb2 {[%clk 0:02:51]}  d6 {[%clk 0:02:52]} 5. Nf3 {[%clk 0:02:46]}  Nc6 {[%clk 0:02:50]} 6. d4 {[%clk 0:02:44]}  Bf5 {[%clk 0:02:42]} 7. d5 {[%clk 0:02:38]}  Nb4 {[%clk 0:02:40]} 8. Nd4 {[%clk 0:02:35]}  Bd7 {[%clk 0:02:33]} 9. Nc3 {[%clk 0:02:26]}  c5 {[%clk 0:02:30]} 10. dxc6 {[%clk 0:01:59]}  Nxc6 {[%clk 0:02:26]} 11. e3 {[%clk 0:01:57]}  h5 {[%clk 0:02:24]} 12. Be2 {[%clk 0:01:52]}  Rc8 {[%clk 0:02:21]} 13. Nf3 {[%clk 0:01:49]}  O-O {[%clk 0:02:17]} 14. Ng5 {[%clk 0:01:42]}  Ne5 {[%clk 0:01:53]} 15. Qd2 {[%clk 0:01:32]}  a6 {[%clk 0:01:45]} 16. O-O {[%clk 0:01:03]}  Bc6 {[%clk 0:01:42]} 17. Nd5 {[%clk 0:00:55]}  Nxd5 {[%clk 0:01:31]} 18. cxd5 {[%clk 0:00:56]}  Bd7 {[%clk 0:01:27]} 19. Rac1 {[%clk 0:00:51]}  Bg4 {[%clk 0:01:09]} 20. f3 {[%clk 0:00:51]}  Bd7 {[%clk 0:01:07]} 21. Bd4 {[%clk 0:00:49]}  f6 {[%clk 0:01:00]} 22. Ne6 {[%clk 0:00:48]}  Bxe6 {[%clk 0:01:00]} 23. dxe6 {[%clk 0:00:49]}  Kh7 {[%clk 0:00:55]} 24. Rxc8 {[%clk 0:00:47]}  Qxc8 {[%clk 0:00:56]} 25. Rc1 {[%clk 0:00:47]}  Qxe6 {[%clk 0:00:55]} 26. Qb4 {[%clk 0:00:44]}  Nc6 {[%clk 0:00:53]} 27. Qc3 {[%clk 0:00:41]}  Nxd4 {[%clk 0:00:50]} 28. Qxd4 {[%clk 0:00:42]}  f5 {[%clk 0:00:50]} 29. Qd3 {[%clk 0:00:39]}  f4 {[%clk 0:00:44]} 30. e4 {[%clk 0:00:37]}  Qf6 {[%clk 0:00:43]} 31. Rc7 {[%clk 0:00:36]}  b5 {[%clk 0:00:40]} 32. Qd5 {[%clk 0:00:32]}  Qxh4 {[%clk 0:00:38]} 33. Bf1 {[%clk 0:00:21]}  Qf6 {[%clk 0:00:35]} 34. Qb7 {[%clk 0:00:20]}  Rf7 {[%clk 0:00:22]} 35. Qxa6 {[%clk 0:00:18]}  Qd4+ {[%clk 0:00:22]} 36. Kh2 {[%clk 0:00:18]}  Qf2 {[%clk 0:00:21]} 37. Qa7 {[%clk 0:00:11]}  Bd4 {[%clk 0:00:17]} 38. Qxd4 {[%clk 0:00:05]}  Qxd4 {[%clk 0:00:18]} 39. g4 {[%clk 0:00:05]}  Qf2+ {[%clk 0:00:18]} 0-1


[Site "https://www.chess.com"]

[Event "Titled Tuesday Blitz November 08 Late 2022"]
[White "Ibadov, Dashgyn"]
[Black "Pniaczek, Marek"]
[WhiteFideId "24107514"]
[BlackFideId "21800421"]
[WhiteElo "2208"]
[BlackElo "2138"]
[Result "0-1"]
[Round "03"]
[TimeControl "180+1"]
[Date "2022.11.09"]
[WhiteClock "0:00:19"]
[BlackClock "0:01:04"]

1. e4 {[%clk 0:03:00]}  e5 {[%clk 0:02:59]} 2. Nf3 {[%clk 0:03:00]}  Nc6 {[%clk 0:02:59]} 3. Nc3 {[%clk 0:02:59]}  Nf6 {[%clk 0:02:58]} 4. d4 {[%clk 0:03:00]}  exd4 {[%clk 0:02:56]} 5. Nxd4 {[%clk 0:03:00]}  Nxe4 {[%clk 0:02:55]} 6. Nxe4 {[%clk 0:02:57]}  Qe7 {[%clk 0:02:54]} 7. f3 {[%clk 0:02:54]}  d5 {[%clk 0:02:52]} 8. Bb5 {[%clk 0:02:55]}  Bd7 {[%clk 0:02:48]} 9. O-O {[%clk 0:02:30]}  dxe4 {[%clk 0:02:43]} 10. Bxc6 {[%clk 0:02:13]}  bxc6 {[%clk 0:02:39]} 11. Re1 {[%clk 0:02:06]}  O-O-O {[%clk 0:02:11]} 12. Rxe4 {[%clk 0:02:06]}  Qf6 {[%clk 0:01:36]} 13. c3 {[%clk 0:02:00]}  c5 {[%clk 0:01:30]} 14. Rf4 {[%clk 0:01:28]}  Qg6 {[%clk 0:01:26]} 15. Nb3 {[%clk 0:01:17]}  Bh3 {[%clk 0:01:23]} 16. Qxd8+ {[%clk 0:00:25]}  Kxd8 {[%clk 0:01:20]} 17. g3 {[%clk 0:00:26]}  Bd6 {[%clk 0:01:17]} 18. Rh4 {[%clk 0:00:20]}  Be6 {[%clk 0:01:09]} 19. Be3 {[%clk 0:00:19]}  Bxg3 {[%clk 0:01:04]} 0-1


[Site "https://www.chess.com"]

[Event "Titled Tuesday Blitz November 08 Late 2022"]
[White "Jorquera, Marcelo"]
[Black "Clawitter, Craig"]
[WhiteFideId "3401197"]
[BlackFideId "2023105"]
[WhiteElo "2136"]
[BlackElo "2173"]
[Result "1-0"]
[Round "03"]
[TimeControl "180+1"]
[Date "2022.11.09"]
[WhiteClock "0:00:41"]
[BlackClock "0:00:06"]

1. e4 {[%clk 0:03:00]}  e6 {[%clk 0:03:00]} 2. Qe2 {[%clk 0:03:00]}  c5 {[%clk 0:02:59]} 3. Nf3 {[%clk 0:02:59]}  Nc6 {[%clk 0:03:00]} 4. g3 {[%clk 0:02:59]}  g6 {[%clk 0:03:00]} 5. Bg2 {[%clk 0:03:00]}  Bg7 {[%clk 0:03:00]} 6. O-O {[%clk 0:03:00]}  Nge7 {[%clk 0:03:00]} 7. c3 {[%clk 0:03:01]}  O-O {[%clk 0:02:58]} 8. Rd1 {[%clk 0:03:00]}  d5 {[%clk 0:02:52]} 9. e5 {[%clk 0:02:58]}  h6 {[%clk 0:02:19]} 10. d4 {[%clk 0:02:56]}  cxd4 {[%clk 0:02:19]} 11. cxd4 {[%clk 0:02:56]}  g5 {[%clk 0:02:20]} 12. h3 {[%clk 0:02:52]}  b6 {[%clk 0:02:12]} 13. Nc3 {[%clk 0:02:51]}  Nb4 {[%clk 0:01:57]} 14. h4 {[%clk 0:02:10]}  Ba6 {[%clk 0:01:36]} 15. Qd2 {[%clk 0:02:09]}  g4 {[%clk 0:01:35]} 16. Nh2 {[%clk 0:02:09]}  Rc8 {[%clk 0:00:21]} 17. Nxg4 {[%clk 0:01:59]}  Nf5 {[%clk 0:00:21]} 18. Bf1 {[%clk 0:01:03]}  Bxf1 {[%clk 0:00:13]} 19. Rxf1 {[%clk 0:01:03]}  Nxd4 {[%clk 0:00:10]} 20. Qxd4 {[%clk 0:00:59]}  Nc2 {[%clk 0:00:10]} 21. Qd3 {[%clk 0:00:59]}  Nxa1 {[%clk 0:00:10]} 22. Bxh6 {[%clk 0:00:48]}  d4 {[%clk 0:00:08]} 23. Ne4 {[%clk 0:00:44]}  Nc2 {[%clk 0:00:07]} 24. Nef6+ {[%clk 0:00:42]}  Kh8 {[%clk 0:00:06]} 25. Qh7# {[%clk 0:00:41]} 1-0


[Site "https://www.chess.com"]

[Event "Titled Tuesday Blitz November 08 Late 2022"]
[White "Kamsky, Gata"]
[Black "Sebag, Marie"]
[WhiteFideId "2000024"]
[BlackFideId "617822"]
[WhiteElo "2888"]
[BlackElo "2588"]
[Result "1-0"]
[Round "03"]
[TimeControl "180+1"]
[Date "2022.11.09"]
[WhiteClock "0:00:33"]
[BlackClock "0:00:05"]

1. e4 {[%clk 0:03:00]}  c6 {[%clk 0:02:51]} 2. d4 {[%clk 0:02:53]}  d5 {[%clk 0:02:43]} 3. exd5 {[%clk 0:02:52]}  cxd5 {[%clk 0:02:42]} 4. Bd3 {[%clk 0:02:52]}  Nf6 {[%clk 0:02:37]} 5. c3 {[%clk 0:02:51]}  g6 {[%clk 0:02:38]} 6. Nf3 {[%clk 0:02:49]}  Bf5 {[%clk 0:02:38]} 7. Bxf5 {[%clk 0:02:47]}  gxf5 {[%clk 0:02:36]} 8. Qb3 {[%clk 0:02:41]}  Qc8 {[%clk 0:02:24]} 9. Bg5 {[%clk 0:02:38]}  Nbd7 {[%clk 0:02:23]} 10. Nbd2 {[%clk 0:02:12]}  e6 {[%clk 0:02:14]} 11. h3 {[%clk 0:02:10]}  Ne4 {[%clk 0:02:13]} 12. Bf4 {[%clk 0:02:09]}  Rg8 {[%clk 0:02:12]} 13. g3 {[%clk 0:02:04]}  Be7 {[%clk 0:02:04]} 14. Nxe4 {[%clk 0:01:54]}  fxe4 {[%clk 0:02:02]} 15. Ne5 {[%clk 0:01:55]}  f6 {[%clk 0:01:56]} 16. Nxd7 {[%clk 0:01:50]}  Qxd7 {[%clk 0:01:56]} 17. O-O-O {[%clk 0:01:50]}  Rc8 {[%clk 0:01:55]} 18. g4 {[%clk 0:01:49]}  b5 {[%clk 0:01:54]} 19. Kb1 {[%clk 0:01:48]}  a5 {[%clk 0:01:53]} 20. f3 {[%clk 0:01:42]}  exf3 {[%clk 0:01:37]} 21. Rhf1 {[%clk 0:01:41]}  b4 {[%clk 0:01:33]} 22. Rxf3 {[%clk 0:01:40]}  Kf7 {[%clk 0:01:24]} 23. Qc2 {[%clk 0:01:37]}  Kg7 {[%clk 0:01:22]} 24. g5 {[%clk 0:01:38]}  Kh8 {[%clk 0:01:16]} 25. h4 {[%clk 0:01:33]}  bxc3 {[%clk 0:01:14]} 26. Rxc3 {[%clk 0:01:32]}  Rxc3 {[%clk 0:01:08]} 27. Qxc3 {[%clk 0:01:32]}  Rc8 {[%clk 0:00:52]} 28. Qxa5 {[%clk 0:01:27]}  Qe8 {[%clk 0:00:43]} 29. Qd2 {[%clk 0:01:23]}  Qh5 {[%clk 0:00:24]} 30. gxf6 {[%clk 0:01:19]}  Bxf6 {[%clk 0:00:24]} 31. Bg5 {[%clk 0:01:19]}  Bg7 {[%clk 0:00:23]} 32. Re1 {[%clk 0:01:17]}  Qg6+ {[%clk 0:00:22]} 33. Ka1 {[%clk 0:01:17]}  Rc2 {[%clk 0:00:21]} 34. Qb4 {[%clk 0:01:15]}  h6 {[%clk 0:00:20]} 35. Bf4 {[%clk 0:01:13]}  Qf5 {[%clk 0:00:19]} 36. Be5 {[%clk 0:01:10]}  Bxe5 {[%clk 0:00:18]} 37. dxe5 {[%clk 0:01:10]}  Qf2 {[%clk 0:00:17]} 38. Rb1 {[%clk 0:01:07]}  Rc8 {[%clk 0:00:11]} 39. Qe7 {[%clk 0:01:03]}  Qf5 {[%clk 0:00:10]} 40. Rg1 {[%clk 0:01:01]}  Qxe5 {[%clk 0:00:10]} 41. a3 {[%clk 0:00:56]}  Rg8 {[%clk 0:00:09]} 42. Rf1 {[%clk 0:00:54]}  d4 {[%clk 0:00:08]} 43. Qd7 {[%clk 0:00:37]}  Qd5 {[%clk 0:00:07]} 44. Qxd5 {[%clk 0:00:37]}  exd5 {[%clk 0:00:07]} 45. Kb1 {[%clk 0:00:37]}  Rg4 {[%clk 0:00:06]} 46. Kc2 {[%clk 0:00:36]}  Rxh4 {[%clk 0:00:06]} 47. Kd3 {[%clk 0:00:37]}  Rh2 {[%clk 0:00:06]} 48. Rb1 {[%clk 0:00:35]}  Kg7 {[%clk 0:00:05]} 49. a4 {[%clk 0:00:34]}  h5 {[%clk 0:00:05]} 50. a5 {[%clk 0:00:34]}  Rf2 {[%clk 0:00:04]} 51. a6 {[%clk 0:00:34]}  Rf8 {[%clk 0:00:04]} 52. b4 {[%clk 0:00:33]}  Kg6 {[%clk 0:00:04]} 53. b5 {[%clk 0:00:33]}  h4 {[%clk 0:00:04]} 54. b6 {[%clk 0:00:33]}  h3 {[%clk 0:00:05]} 55. b7 {[%clk 0:00:33]}  h2 {[%clk 0:00:05]} 56. a7 {[%clk 0:00:33]} 1-0


[Site "https://www.chess.com"]

[Event "Titled Tuesday Blitz November 08 Late 2022"]
[White "Kazakov, Mikhail"]
[Black "Guzman, Christopher"]
[WhiteFideId "14102749"]
[BlackFideId "6405096"]
[WhiteElo "2438"]
[BlackElo "2609"]
[Result "1-0"]
[Round "03"]
[TimeControl "180+1"]
[Date "2022.11.09"]
[WhiteClock "0:01:05"]
[BlackClock "0:02:07"]

1. e4 {[%clk 0:03:00]}  c6 {[%clk 0:02:59]} 2. d4 {[%clk 0:02:56]}  d5 {[%clk 0:03:00]} 3. Nd2 {[%clk 0:02:57]}  dxe4 {[%clk 0:03:00]} 4. Nxe4 {[%clk 0:02:58]}  Nf6 {[%clk 0:03:01]} 5. Ng3 {[%clk 0:02:56]}  Bg4 {[%clk 0:03:00]} 6. Be2 {[%clk 0:02:55]}  Bxe2 {[%clk 0:03:00]} 7. N1xe2 {[%clk 0:02:56]}  Nbd7 {[%clk 0:02:59]} 8. O-O {[%clk 0:02:55]}  e6 {[%clk 0:02:59]} 9. c3 {[%clk 0:02:56]}  Bd6 {[%clk 0:03:00]} 10. Bf4 {[%clk 0:02:49]}  Qc7 {[%clk 0:02:59]} 11. Qd2 {[%clk 0:02:45]}  O-O {[%clk 0:02:55]} 12. Bxd6 {[%clk 0:02:44]}  Qxd6 {[%clk 0:02:56]} 13. Qf4 {[%clk 0:02:45]}  Qxf4 {[%clk 0:02:56]} 14. Nxf4 {[%clk 0:02:46]}  Rfe8 {[%clk 0:02:55]} 15. Rae1 {[%clk 0:02:41]}  Rad8 {[%clk 0:02:56]} 16. Nd3 {[%clk 0:02:39]}  a5 {[%clk 0:02:53]} 17. f4 {[%clk 0:02:37]}  g6 {[%clk 0:02:53]} 18. Ne5 {[%clk 0:02:34]}  Nb6 {[%clk 0:02:52]} 19. Ne4 {[%clk 0:02:26]}  Nxe4 {[%clk 0:02:50]} 20. Rxe4 {[%clk 0:02:27]}  a4 {[%clk 0:02:50]} 21. g4 {[%clk 0:02:23]}  Nd5 {[%clk 0:02:49]} 22. a3 {[%clk 0:02:08]}  Re7 {[%clk 0:02:41]} 23. Nd3 {[%clk 0:02:06]}  b6 {[%clk 0:02:39]} 24. f5 {[%clk 0:02:00]}  Nf6 {[%clk 0:02:36]} 25. Ref4 {[%clk 0:01:52]}  g5 {[%clk 0:02:36]} 26. R4f3 {[%clk 0:01:50]}  Nxg4 {[%clk 0:02:36]} 27. f6 {[%clk 0:01:50]}  Red7 {[%clk 0:02:32]} 28. Rg3 {[%clk 0:01:50]}  Nh6 {[%clk 0:02:29]} 29. Rxg5+ {[%clk 0:01:48]}  Kh8 {[%clk 0:02:29]} 30. Ne5 {[%clk 0:01:49]}  Rc7 {[%clk 0:02:30]} 31. Rg7 {[%clk 0:01:37]}  Rg8 {[%clk 0:02:27]} 32. Rxg8+ {[%clk 0:01:33]}  Kxg8 {[%clk 0:02:27]} 33. Kf2 {[%clk 0:01:21]}  Nf5 {[%clk 0:02:24]} 34. Kf3 {[%clk 0:01:19]}  Kf8 {[%clk 0:02:24]} 35. Rd1 {[%clk 0:01:16]}  Ke8 {[%clk 0:02:19]} 36. Ke4 {[%clk 0:01:14]}  Rc8 {[%clk 0:02:16]} 37. Rg1 {[%clk 0:01:09]}  Kf8 {[%clk 0:02:14]} 38. Nd7+ {[%clk 0:01:08]}  Ke8 {[%clk 0:02:14]} 39. Nxb6 {[%clk 0:01:07]}  Rb8 {[%clk 0:02:07]} 40. Rg8# {[%clk 0:01:05]} 1-0


[Site "https://www.chess.com"]

[Event "Titled Tuesday Blitz November 08 Late 2022"]
[White "Kekic, Armin"]
[Black "chess50years"]
[WhiteFideId "14401274"]
[WhiteElo "2132"]
[BlackElo "2093"]
[Result "1-0"]
[Round "03"]
[TimeControl "180+1"]
[Date "2022.11.09"]
[WhiteClock "0:01:05"]
[BlackClock "0:01:18"]

1. e4 {[%clk 0:02:57]}  c6 {[%clk 0:02:58]} 2. d3 {[%clk 0:02:56]}  d5 {[%clk 0:02:58]} 3. Nd2 {[%clk 0:02:56]}  e5 {[%clk 0:02:58]} 4. Ngf3 {[%clk 0:02:56]}  Bd6 {[%clk 0:02:57]} 5. d4 {[%clk 0:02:56]}  exd4 {[%clk 0:02:54]} 6. Nxd4 {[%clk 0:02:55]}  Nf6 {[%clk 0:02:48]} 7. exd5 {[%clk 0:02:54]}  Nxd5 {[%clk 0:02:46]} 8. Be2 {[%clk 0:02:52]}  O-O {[%clk 0:02:45]} 9. O-O {[%clk 0:02:51]}  Nd7 {[%clk 0:02:33]} 10. N2f3 {[%clk 0:02:46]}  N7f6 {[%clk 0:02:30]} 11. h3 {[%clk 0:02:38]}  h6 {[%clk 0:02:30]} 12. Bd3 {[%clk 0:02:36]}  Qc7 {[%clk 0:02:19]} 13. Nf5 {[%clk 0:02:34]}  Bxf5 {[%clk 0:02:19]} 14. Bxf5 {[%clk 0:02:35]}  Rfe8 {[%clk 0:02:15]} 15. c3 {[%clk 0:02:35]}  Rad8 {[%clk 0:02:05]} 16. Qc2 {[%clk 0:02:35]}  Nf4 {[%clk 0:02:01]} 17. Bxf4 {[%clk 0:02:34]}  Bxf4 {[%clk 0:02:00]} 18. Rfe1 {[%clk 0:02:25]}  a6 {[%clk 0:01:57]} 19. a4 {[%clk 0:02:13]}  a5 {[%clk 0:01:56]} 20. Rad1 {[%clk 0:02:04]}  Rxd1 {[%clk 0:01:53]} 21. Rxd1 {[%clk 0:02:01]}  Rd8 {[%clk 0:01:50]} 22. Kf1 {[%clk 0:01:44]}  Kf8 {[%clk 0:01:43]} 23. g3 {[%clk 0:01:31]}  Bd6 {[%clk 0:01:40]} 24. Kg2 {[%clk 0:01:22]}  Bc5 {[%clk 0:01:38]} 25. Bd3 {[%clk 0:01:19]}  Qd6 {[%clk 0:01:31]} 26. Be2 {[%clk 0:01:16]}  Qe7 {[%clk 0:01:29]} 27. Rxd8+ {[%clk 0:01:13]}  Qxd8 {[%clk 0:01:28]} 28. Bc4 {[%clk 0:01:14]}  Qe7 {[%clk 0:01:25]} 29. Qf5 {[%clk 0:01:08]}  Qd7 {[%clk 0:01:18]} 30. Qxc5+ {[%clk 0:01:05]} 1-0


[Site "https://www.chess.com"]

[Event "Titled Tuesday Blitz November 08 Late 2022"]
[White "Kopacz, Grzegorz"]
[Black "Suarez Uriel, Adrian"]
[WhiteFideId "1109880"]
[BlackFideId "22230874"]
[WhiteElo "2037"]
[BlackElo "2331"]
[Result "1-0"]
[Round "03"]
[TimeControl "180+1"]
[Date "2022.11.09"]
[WhiteClock "0:00:35"]
[BlackClock "0:01:12"]

1. d4 {[%clk 0:03:00]}  Nf6 {[%clk 0:02:59]} 2. c4 {[%clk 0:03:00]}  b6 {[%clk 0:03:00]} 3. Nc3 {[%clk 0:03:00]}  Bb7 {[%clk 0:03:00]} 4. f3 {[%clk 0:02:53]}  d5 {[%clk 0:03:00]} 5. cxd5 {[%clk 0:02:53]}  Nxd5 {[%clk 0:03:00]} 6. e4 {[%clk 0:02:52]}  Nxc3 {[%clk 0:03:01]} 7. bxc3 {[%clk 0:02:53]}  e5 {[%clk 0:03:02]} 8. Ne2 {[%clk 0:02:41]}  exd4 {[%clk 0:03:00]} 9. cxd4 {[%clk 0:02:38]}  Bb4+ {[%clk 0:03:01]} 10. Bd2 {[%clk 0:02:36]}  Bxd2+ {[%clk 0:03:00]} 11. Qxd2 {[%clk 0:02:37]}  O-O {[%clk 0:03:01]} 12. Nc3 {[%clk 0:02:31]}  Nd7 {[%clk 0:02:55]} 13. Bc4 {[%clk 0:02:31]}  c5 {[%clk 0:02:54]} 14. O-O {[%clk 0:02:29]}  Rc8 {[%clk 0:02:54]} 15. d5 {[%clk 0:02:26]}  Ne5 {[%clk 0:02:53]} 16. Be2 {[%clk 0:02:27]}  Re8 {[%clk 0:02:47]} 17. a4 {[%clk 0:02:27]}  Qf6 {[%clk 0:02:44]} 18. a5 {[%clk 0:02:24]}  Ng6 {[%clk 0:02:42]} 19. axb6 {[%clk 0:02:21]}  axb6 {[%clk 0:02:43]} 20. Rfb1 {[%clk 0:02:21]}  Nf4 {[%clk 0:02:40]} 21. Bf1 {[%clk 0:02:21]}  Rcd8 {[%clk 0:02:38]} 22. Na4 {[%clk 0:02:14]}  Rd6 {[%clk 0:02:35]} 23. Rb2 {[%clk 0:02:08]}  h5 {[%clk 0:02:25]} 24. Rab1 {[%clk 0:02:07]}  Qg5 {[%clk 0:02:21]} 25. Kh1 {[%clk 0:02:01]}  f5 {[%clk 0:02:00]} 26. Rxb6 {[%clk 0:01:55]}  Rxb6 {[%clk 0:02:00]} 27. Rxb6 {[%clk 0:01:56]}  Bc8 {[%clk 0:02:00]} 28. Nxc5 {[%clk 0:01:52]}  fxe4 {[%clk 0:01:59]} 29. Nxe4 {[%clk 0:01:52]}  Qe5 {[%clk 0:01:53]} 30. d6 {[%clk 0:01:49]}  Bd7 {[%clk 0:01:53]} 31. Qb2 {[%clk 0:01:37]}  Qd5 {[%clk 0:01:48]} 32. Qc2 {[%clk 0:01:33]}  Rc8 {[%clk 0:01:44]} 33. Qb2 {[%clk 0:00:55]}  Kh8 {[%clk 0:01:38]} 34. Rb8 {[%clk 0:00:51]}  Qd1 {[%clk 0:01:28]} 35. Rxc8+ {[%clk 0:00:51]}  Bxc8 {[%clk 0:01:28]} 36. Qb5 {[%clk 0:00:44]}  Bd7 {[%clk 0:01:22]} 37. Qc4 {[%clk 0:00:42]}  Be6 {[%clk 0:01:21]} 38. Qa6 {[%clk 0:00:40]}  Qe1 {[%clk 0:01:14]} 39. Ng5 {[%clk 0:00:38]}  Bf5 {[%clk 0:01:12]} 40. Qa8+ {[%clk 0:00:35]} 1-0


[Site "https://www.chess.com"]

[Event "Titled Tuesday Blitz November 08 Late 2022"]
[White "Korkmaz, Necmettin"]
[Black "Han, Yichen"]
[WhiteFideId "6303285"]
[BlackFideId "1054430"]
[WhiteElo "2430"]
[BlackElo "2608"]
[Result "1-0"]
[Round "03"]
[TimeControl "180+1"]
[Date "2022.11.09"]
[WhiteClock "0:00:09"]
[BlackClock "0:00:04"]

1. e4 {[%clk 0:03:00]}  g6 {[%clk 0:02:54]} 2. d4 {[%clk 0:02:58]}  Bg7 {[%clk 0:02:54]} 3. Nc3 {[%clk 0:02:58]}  c5 {[%clk 0:02:54]} 4. Nf3 {[%clk 0:02:57]}  cxd4 {[%clk 0:02:53]} 5. Nxd4 {[%clk 0:02:57]}  Nc6 {[%clk 0:02:48]} 6. Be3 {[%clk 0:02:50]}  Nf6 {[%clk 0:02:47]} 7. Bc4 {[%clk 0:02:45]}  O-O {[%clk 0:02:40]} 8. h3 {[%clk 0:02:29]}  Qa5 {[%clk 0:02:36]} 9. O-O {[%clk 0:02:20]}  a6 {[%clk 0:02:32]} 10. Bb3 {[%clk 0:02:19]}  d6 {[%clk 0:02:24]} 11. Nd5 {[%clk 0:02:14]}  Nxd5 {[%clk 0:02:17]} 12. Bxd5 {[%clk 0:02:09]}  Bd7 {[%clk 0:02:09]} 13. c3 {[%clk 0:02:06]}  Rac8 {[%clk 0:02:02]} 14. a4 {[%clk 0:01:56]}  e6 {[%clk 0:01:49]} 15. Bb3 {[%clk 0:01:41]}  Ne5 {[%clk 0:01:47]} 16. Nf3 {[%clk 0:01:35]}  Nc4 {[%clk 0:01:33]} 17. Bxc4 {[%clk 0:01:34]}  Rxc4 {[%clk 0:01:34]} 18. Qxd6 {[%clk 0:01:34]}  Bc6 {[%clk 0:01:35]} 19. Bd4 {[%clk 0:01:03]}  Rd8 {[%clk 0:01:10]} 20. Qf4 {[%clk 0:00:50]}  Bxd4 {[%clk 0:00:42]} 21. Nxd4 {[%clk 0:00:40]}  Be8 {[%clk 0:00:26]} 22. Qf6 {[%clk 0:00:36]}  Rdc8 {[%clk 0:00:18]} 23. Rfd1 {[%clk 0:00:21]}  Rxa4 {[%clk 0:00:15]} 24. Nxe6 {[%clk 0:00:20]}  fxe6 {[%clk 0:00:12]} 25. Qxe6+ {[%clk 0:00:20]}  Kg7 {[%clk 0:00:12]} 26. Qxc8 {[%clk 0:00:17]}  Rxa1 {[%clk 0:00:12]} 27. Qxb7+ {[%clk 0:00:17]}  Bf7 {[%clk 0:00:11]} 28. Rxa1 {[%clk 0:00:15]}  Qxa1+ {[%clk 0:00:12]} 29. Kh2 {[%clk 0:00:15]}  Qa5 {[%clk 0:00:12]} 30. f4 {[%clk 0:00:14]}  Qb5 {[%clk 0:00:12]} 31. Qxb5 {[%clk 0:00:11]}  axb5 {[%clk 0:00:12]} 32. Kg3 {[%clk 0:00:10]}  Kf6 {[%clk 0:00:13]} 33. Kf3 {[%clk 0:00:10]}  Ke6 {[%clk 0:00:11]} 34. g4 {[%clk 0:00:11]}  Kd6 {[%clk 0:00:12]} 35. Ke3 {[%clk 0:00:10]}  Kc5 {[%clk 0:00:13]} 36. f5 {[%clk 0:00:10]}  Kc4 {[%clk 0:00:12]} 37. e5 {[%clk 0:00:10]}  gxf5 {[%clk 0:00:10]} 38. gxf5 {[%clk 0:00:10]}  Kd5 {[%clk 0:00:10]} 39. e6 {[%clk 0:00:09]}  Be8 {[%clk 0:00:10]} 40. Kf4 {[%clk 0:00:09]}  h6 {[%clk 0:00:09]} 41. b3 {[%clk 0:00:09]}  Bh5 {[%clk 0:00:09]} 42. c4+ {[%clk 0:00:09]}  bxc4 {[%clk 0:00:09]} 43. bxc4+ {[%clk 0:00:10]}  Kd6 {[%clk 0:00:06]} 44. c5+ {[%clk 0:00:10]}  Kxc5 {[%clk 0:00:05]} 45. Ke5 {[%clk 0:00:10]}  Kc6 {[%clk 0:00:05]} 46. f6 {[%clk 0:00:09]}  Kc7 {[%clk 0:00:05]} 47. f7 {[%clk 0:00:09]}  Bxf7 {[%clk 0:00:05]} 48. exf7 {[%clk 0:00:10]}  Kd7 {[%clk 0:00:06]} 49. f8=Q {[%clk 0:00:10]}  Kc6 {[%clk 0:00:07]} 50. Qxh6+ {[%clk 0:00:10]}  Kb5 {[%clk 0:00:07]} 51. Qd6 {[%clk 0:00:10]}  Ka4 {[%clk 0:00:02]} 52. Qb8 {[%clk 0:00:10]}  Ka3 {[%clk 0:00:03]} 53. Kd4 {[%clk 0:00:10]}  Ka2 {[%clk 0:00:04]} 54. Kc3 {[%clk 0:00:09]} 1-0


[Site "https://www.chess.com"]

[Event "Titled Tuesday Blitz November 08 Late 2022"]
[White "Koutlas, Nikolaos"]
[Black "Goltsev, Dmitry"]
[WhiteFideId "25827138"]
[BlackFideId "24176710"]
[WhiteElo "2501"]
[BlackElo "2746"]
[Result "0-1"]
[Round "03"]
[TimeControl "180+1"]
[Date "2022.11.09"]
[WhiteClock "0:01:50"]
[BlackClock "0:02:24"]

1. e4 {[%clk 0:03:00]}  e6 {[%clk 0:02:59]} 2. d4 {[%clk 0:02:58]}  d5 {[%clk 0:03:00]} 3. Nd2 {[%clk 0:02:58]}  c5 {[%clk 0:03:00]} 4. Ngf3 {[%clk 0:02:58]}  Nc6 {[%clk 0:03:01]} 5. exd5 {[%clk 0:02:46]}  exd5 {[%clk 0:03:01]} 6. Bd3 {[%clk 0:02:44]}  Nf6 {[%clk 0:03:02]} 7. O-O {[%clk 0:02:43]}  Be7 {[%clk 0:03:03]} 8. dxc5 {[%clk 0:02:43]}  Bxc5 {[%clk 0:03:03]} 9. Re1+ {[%clk 0:02:44]}  Be6 {[%clk 0:03:04]} 10. Nb3 {[%clk 0:02:43]}  Bb6 {[%clk 0:03:05]} 11. Nbd4 {[%clk 0:02:36]}  O-O {[%clk 0:03:02]} 12. Rxe6 {[%clk 0:02:31]}  fxe6 {[%clk 0:03:03]} 13. Nxe6 {[%clk 0:02:31]}  Bxf2+ {[%clk 0:03:03]} 14. Kxf2 {[%clk 0:02:23]}  Qb6+ {[%clk 0:03:02]} 15. Be3 {[%clk 0:02:19]}  Ng4+ {[%clk 0:03:01]} 16. Kg3 {[%clk 0:02:19]}  Nxe3 {[%clk 0:03:00]} 17. Qg1 {[%clk 0:02:18]}  Nf5+ {[%clk 0:02:55]} 18. Bxf5 {[%clk 0:02:17]}  Qxg1 {[%clk 0:02:56]} 19. Rxg1 {[%clk 0:02:14]}  Rxf5 {[%clk 0:02:57]} 20. Rd1 {[%clk 0:02:13]}  Re8 {[%clk 0:02:55]} 21. Nc7 {[%clk 0:02:11]}  Re2 {[%clk 0:02:54]} 22. Nxd5 {[%clk 0:02:11]}  h6 {[%clk 0:02:48]} 23. b4 {[%clk 0:02:10]}  Rf7 {[%clk 0:02:36]} 24. b5 {[%clk 0:02:08]}  Ne7 {[%clk 0:02:33]} 25. Nb4 {[%clk 0:01:55]}  Nf5+ {[%clk 0:02:30]} 26. Kh3 {[%clk 0:01:56]}  g5 {[%clk 0:02:26]} 27. Nd3 {[%clk 0:01:50]}  g4+ {[%clk 0:02:24]} 28. Kxg4 {[%clk 0:01:50]}  Ne3+ {[%clk 0:02:23]} 29. Kh5 {[%clk 0:01:50]}  Nxd1 {[%clk 0:02:24]} 30. Nde5 {[%clk 0:01:50]} 0-1


[Site "https://www.chess.com"]